[Event "Teplice Open 2019"]
[Site "Teplice"]
[Date "2019.06.16"]
[Round "2.26"]
[White "Navrotescu, Andreea-Cristiana"]
[Black "Gavrilescu, David"]
[Result "0-1"]
[ECO "A07"]
[WhiteElo "2233"]
[BlackElo "2475"]
[Annotator "ChessBase"]
[PlyCount "80"]
[EventDate "2019.06.15"]
[EventType "swiss"]
[EventCountry "CZE"]
[SourceTitle "playchess.com"]
[Source "ChessBase"]
[SourceQuality "1"]
[TimeControl "40/5400+30:1800+30"]

1. Nf3 {[%emt 0:01:38]} d5 {[%emt 0:00:00]} 2. b3 {[%emt 0:00:03]} Bf5 {[%emt 0:01:14]} 3. Bb2 {[%emt 0:00:16]} e6 {[%emt 0:00:29]} 4. g3 {[%emt 0:00:24]} Nf6 {[%emt 0:00:42]} 5. Bg2 {[%emt 0:00:18]} h6 {[%emt 0:01:02]} 6. O-O {[%emt 0:00:26]} Be7 {[%emt 0:00:37]} 7. d3 {[%emt 0:00:26]} O-O {[%emt 0:00:40]} 8. Nbd2 {[%emt 0:00:15]} Bh7 {[%emt 0:00:46]} 9. Re1 {[%emt 0:02:27]} a5 {[%emt 0:01:09]} 10. a4 {[%emt 0:01:30]} c6 {[%emt 0:01:13]} 11. e4 {[%emt 0:00:32]} Na6 {[%emt 0:00:48]} 12. e5 {[%emt 0:01:57]} Nd7 {[%emt 0:00:42]} 13. Nd4 {[%emt 0:00:23]} Nb4 {[%emt 0:10:04]} 14. Kh1 {[%emt 0:10:53]} Qb8 {[%emt 0:07:22]} 15. f4 {[%emt 0:03:47]} b5 {[%emt 0:03:36]} 16. Ba3 {[%emt 0:10:43]} Qb6 {[%emt 0:02:48]} 17. N2f3 {[%emt 0:02:57]} Bc5 {[%emt 0:06:37]} 18. Bb2 {[%emt 0:05:22]} bxa4 {[%emt 0:04:22]} 19. Rxa4 {[%emt 0:00:35]} Be7 {[%emt 0:00:47]} 20. f5 {[%emt 0:09:05]} c5 {[%emt 0:08:15]} 21. fxe6 {[%emt 0:03:10]} fxe6 {[%emt 0:00:09]} 22. Ne2 {[%emt 0:00:15]} c4 {[%emt 0:02:03]} 23. bxc4 {[%emt 0:09:50]} dxc4 {[%emt 0:02:29]} 24. dxc4 {[%emt 0:11:02]} Nc5 {[%emt 0:01:07]} 25. Bd4 {[%emt 0:00:19]} Nxc2 {[%emt 0:00:42]} 26. Ra2 {[%emt 0:05:41]} Nxe1 {[%emt 0:01:48]} 27. Qxe1 {[%emt 0:00:09]} Qb4 {[%emt 0:00:36]} 28. Nd2 {[%emt 0:03:56]} Nd3 {[%emt 0:01:01]} 29. Qg1 {[%emt 0:01:04]} Rad8 {[%emt 0:00:18]} 30. h3 {[%emt 0:01:37]} Bc5 {[%emt 0:03:38]} 31. Bxc5 {[%emt 0:06:32]} Qxc5 {[%emt 0:00:07]} 32. Qxc5 {[%emt 0:00:51]} Nxc5 {[%emt 0:00:02]} 33. Nf4 {[%emt 0:00:42]} g5 {[%emt 0:04:14]} 34. Nh5 {[%emt 0:00:49]} Rf2 {[%emt 0:00:08]} 35. Nf6+ {[%emt 0:01:37]} Kg7 {[%emt 0:00:06]} 36. Rxa5 {[%emt 0:04:25]} Rdxd2 {[%emt 0:00:12]} 37. Ra7+ {[%emt 0:01:58]} Kg6 {[%emt 0:00:26]} 38. g4 {[%emt 0:00:17]} Rxg2 {[%emt 0:00:22]} 39. Nxh7 {[%emt 0:00:23]} Rgf2 {[%emt 0:00:07]} 40. Kg1 {[%emt 0:00:23]} Ne4 {[%emt 0:00:09]} 0-1

[Event "Teplice Open 2019"]
[Site "Teplice"]
[Date "2019.06.16"]
[Round "2.28"]
[White "Lorscheid, Gerhard"]
[Black "Vogel, Roven"]
[Result "0-1"]
[ECO "E32"]
[WhiteElo "2214"]
[BlackElo "2471"]
[Annotator "ChessBase"]
[PlyCount "50"]
[EventDate "2019.06.15"]
[EventType "swiss"]
[EventCountry "CZE"]
[SourceTitle "playchess.com"]
[Source "ChessBase"]
[SourceQuality "1"]
[TimeControl "40/5400+30:1800+30"]

1. d4 {[%emt 0:00:00]} Nf6 {[%emt 0:00:00]} 2. c4 {[%emt 0:00:00]} e6 {[%emt 0:00:00]} 3. Nc3 {[%emt 0:00:44]} Bb4 {[%emt 0:00:00]} 4. Qc2 {[%emt 0:00:21]} d6 {[%emt 0:00:17]} 5. Nf3 {[%emt 0:02:14]} O-O {[%emt 0:00:43]} 6. Bg5 {[%emt 0:00:39]} h6 {[%emt 0:01:21]} 7. Bd2 {[%emt 0:03:42]} Nbd7 {[%emt 0:05:42]} 8. a3 {[%emt 0:01:19]} Bxc3 {[%emt 0:00:13]} 9. Bxc3 {[%emt 0:00:02]} Qe7 {[%emt 0:05:56]} 10. e3 {[%emt 0:01:43]} b6 {[%emt 0:01:41]} 11. Be2 {[%emt 0:19:28]} Bb7 {[%emt 0:01:12]} 12. O-O {[%emt 0:01:50]} c5 {[%emt 0:12:51]} 13. b4 {[%emt 0:03:32]} cxd4 {[%emt 0:06:04]} 14. exd4 {[%emt 0:03:43]} Rac8 {[%emt 0:01:50]} 15. Qb2 {[%emt 0:06:30]} Bxf3 {[%emt 0:00:46]} 16. gxf3 {[%emt 0:02:02]} Nh5 {[%emt 0:00:30]} 17. Qd2 {[%emt 0:05:03]} Qh4 {[%emt 0:08:55]} 18. Kh1 {[%emt 0:01:21]} Ndf6 {[%emt 0:01:05]} 19. Rg1 {[%emt 0:02:49]} Qxf2 {[%emt 0:08:57]} 20. Rg2 {[%emt 0:00:25]} Qh4 {[%emt 0:00:15]} 21. Rag1 {[%emt 0:01:31]} Kh8 {[%emt 0:01:12]} 22. Qe3 {[%emt 0:02:54]} b5 {[%emt 0:05:50]} 23. Rxg7 {[%emt 0:31:00]} Nxg7 {[%emt 0:02:02]} 24. Be1 {[%emt 0:00:08]} Qh5 {[%emt 0:04:18]} 25. f4 {[%emt 0:00:06]} Nf5 {[%emt 0:00:22]} 0-1

[Event "Teplice Open 2019"]
[Site "Teplice"]
[Date "2019.06.16"]
[Round "2.29"]
[White "Schmidt, Tommy B."]
[Black "Abdumalik, Zhansaya"]
[Result "0-1"]
[ECO "E70"]
[WhiteElo "2205"]
[BlackElo "2464"]
[Annotator "ChessBase"]
[PlyCount "194"]
[EventDate "2019.06.15"]
[EventType "swiss"]
[EventCountry "CZE"]
[SourceTitle "playchess.com"]
[Source "ChessBase"]
[SourceQuality "1"]
[TimeControl "40/5400+30:1800+30"]

1. d4 {[%emt 0:00:00]} Nf6 {[%emt 0:00:02]} 2. c4 {[%emt 0:00:00]} g6 {[%emt 0:01:06]} 3. Nc3 {[%emt 0:00:00]} d6 {[%emt 0:00:05]} 4. e4 {[%emt 0:00:00]} Nbd7 {[%emt 0:00:44]} 5. Bd3 {[%emt 0:01:22]} e5 {[%emt 0:00:44]} 6. d5 {[%emt 0:00:09]} Bg7 {[%emt 0:00:39]} 7. Nge2 {[%emt 0:01:18]} O-O {[%emt 0:02:33]} 8. O-O {[%emt 0:00:09]} h6 {[%emt 0:01:32]} 9. Ng3 {[%emt 0:02:41]} Nh7 {[%emt 0:02:18]} 10. Bc2 {[%emt 0:02:43]} h5 {[%emt 0:02:35]} 11. Be3 {[%emt 0:01:49]} Ndf6 {[%emt 0:03:28]} 12. f3 {[%emt 0:00:47]} h4 {[%emt 0:08:10]} 13. Nge2 {[%emt 0:00:17]} Nh5 {[%emt 0:02:47]} 14. Qd2 {[%emt 0:03:42]} Bh8 {[%emt 0:08:34]} 15. Rae1 {[%emt 0:11:48]} Qe7 {[%emt 0:08:34]} 16. Nd1 {[%emt 0:24:08]} Bd7 {[%emt 0:04:54]} 17. b4 {[%emt 0:00:34]} f5 {[%emt 0:07:18]} 18. exf5 {[%emt 0:06:47]} gxf5 {[%emt 0:00:17]} 19. f4 {[%emt 0:00:35]} e4 {[%emt 0:01:07]} 20. Bd4 {[%emt 0:05:35]} N7f6 {[%emt 0:01:21]} 21. Qc3 {[%emt 0:01:08]} Kf7 {[%emt 0:02:33]} 22. Bb3 {[%emt 0:00:56]} Rg8 {[%emt 0:02:41]} 23. Ne3 {[%emt 0:01:47]} b6 {[%emt 0:08:16]} 24. c5 {[%emt 0:01:33]} Rae8 {[%emt 0:03:44]} 25. Nc4 {[%emt 0:08:59]} Kg6 {[%emt 0:02:41]} 26. Ne3 {[%emt 0:05:28]} Bg7 {[%emt 0:02:48]} 27. a4 {[%emt 0:04:03]} Bh6 {[%emt 0:02:04]} 28. Rf2 {[%emt 0:03:57]} Kh7 {[%emt 0:01:23]} 29. a5 {[%emt 0:00:29]} bxa5 {[%emt 0:01:21]} 30. bxa5 {[%emt 0:00:40]} Ng4 {[%emt 0:00:49]} 31. Nxg4 {[%emt 0:01:21]} Rxg4 {[%emt 0:00:25]} 32. c6 {[%emt 0:05:00]} Bc8 {[%emt 0:00:06]} 33. Bc4 {[%emt 0:00:43]} Nxf4 {[%emt 0:03:48]} 34. Ref1 {[%emt 0:01:07]} Nh5 {[%emt 0:02:14]} 35. Be3 {[%emt 0:01:09]} Bg7 {[%emt 0:01:51]} 36. Qc1 {[%emt 0:01:07]} a6 {[%emt 0:01:59]} 37. Nf4 {[%emt 0:02:12]} Nxf4 {[%emt 0:00:38]} 38. Rxf4 {[%emt 0:00:43]} Rxf4 {[%emt 0:02:16]} 39. Rxf4 {[%emt 0:01:28]} Bh6 {[%emt 0:02:41]} 40. Rf1 {[%emt 0:00:38]} Bxe3+ {[%emt 0:02:09]} 41. Qxe3 {[%emt 0:03:36]} Rg8 {[%emt 0:00:00]} 42. Rf4 {[%emt 0:01:20]} Rg6 {[%emt 0:04:43]} 43. Qf2 {[%emt 0:03:20]} Rh6 {[%emt 0:01:37]} 44. Qa7 {[%emt 0:05:42]} Qg7 {[%emt 0:01:52]} 45. Bf1 {[%emt 0:01:35]} Kg6 {[%emt 0:01:09]} 46. Qf2 {[%emt 0:00:28]} Qf6 {[%emt 0:00:40]} 47. Kh1 {[%emt 0:01:23]} Qa1 {[%emt 0:02:03]} 48. h3 {[%emt 0:01:01]} Rh7 {[%emt 0:04:16]} 49. Qd2 {[%emt 0:01:21]} Qe5 {[%emt 0:01:03]} 50. Be2 {[%emt 0:01:01]} e3 {[%emt 0:06:14]} 51. Qb4 {[%emt 0:05:28]} Kg5 {[%emt 0:02:02]} 52. Rf1 {[%emt 0:02:48]} Qxd5 {[%emt 0:01:45]} 53. Qf4+ {[%emt 0:00:15]} Kf6 {[%emt 0:01:32]} 54. Qxe3 {[%emt 0:00:18]} Qxc6 {[%emt 0:04:52]} 55. Qd4+ {[%emt 0:00:31]} Kg6 {[%emt 0:00:25]} 56. Bd3 {[%emt 0:03:25]} Rh5 {[%emt 0:00:57]} 57. Rf2 {[%emt 0:02:07]} Qc1+ {[%emt 0:02:19]} 58. Rf1 {[%emt 0:00:09]} Qh6 {[%emt 0:02:59]} 59. Qc4 {[%emt 0:00:22]} Qg7 {[%emt 0:00:46]} 60. Qg4+ {[%emt 0:00:24]} Kh6 {[%emt 0:00:50]} 61. Qf4+ {[%emt 0:00:32]} Kh7 {[%emt 0:00:13]} 62. Re1 {[%emt 0:01:04]} Qf7 {[%emt 0:01:17]} 63. Bc4 {[%emt 0:01:07]} Qf8 {[%emt 0:00:37]} 64. Qf3 {[%emt 0:00:48]} Rg5 {[%emt 0:00:44]} 65. Qc6 {[%emt 0:00:12]} Qg7 {[%emt 0:00:33]} 66. Qe8 {[%emt 0:01:22]} Bd7 {[%emt 0:00:43]} 67. Qd8 {[%emt 0:00:06]} Kh6 {[%emt 0:01:25]} 68. Re7 {[%emt 0:01:12]} Qb2 {[%emt 0:00:15]} 69. Qf8+ {[%emt 0:00:27]} Rg7 {[%emt 0:00:05]} 70. Qh8+ {[%emt 0:01:59]} Kg6 {[%emt 0:00:03]} 71. Bf1 {[%emt 0:00:37]} Qf6 {[%emt 0:00:55]} 72. Rxg7+ {[%emt 0:00:35]} Qxg7 {[%emt 0:00:06]} 73. Qxh4 {[%emt 0:00:14]} Qa1 {[%emt 0:00:33]} 74. Qg3+ {[%emt 0:00:21]} Kf7 {[%emt 0:00:47]} 75. Qf3 {[%emt 0:00:20]} Kf6 {[%emt 0:00:17]} 76. Kh2 {[%emt 0:00:55]} Qxa5 {[%emt 0:00:17]} 77. Bd3 {[%emt 0:00:36]} Qe5+ {[%emt 0:00:19]} 78. Kh1 {[%emt 0:00:08]} Bb5 {[%emt 0:00:40]} 79. Bc2 {[%emt 0:00:18]} Qc5 {[%emt 0:00:24]} 80. Be4 {[%emt 0:00:50]} Ke6 {[%emt 0:01:04]} 81. Bb7 {[%emt 0:00:11]} Qe5 {[%emt 0:00:40]} 82. Qf2 {[%emt 0:00:35]} Kd7 {[%emt 0:00:23]} 83. Qh4 {[%emt 0:00:18]} c6 {[%emt 0:00:40]} 84. Qh7+ {[%emt 0:00:09]} Kd8 {[%emt 0:00:43]} 85. Ba8 {[%emt 0:00:43]} Qe1+ {[%emt 0:00:07]} 86. Kh2 {[%emt 0:00:07]} Qe5+ {[%emt 0:00:01]} 87. Kh1 {[%emt 0:00:06]} d5 {[%emt 0:00:23]} 88. Qa7 {[%emt 0:00:25]} Qe1+ {[%emt 0:00:21]} 89. Kh2 {[%emt 0:00:06]} Qe7 {[%emt 0:00:32]} 90. Qb8+ {[%emt 0:00:55]} Kd7 {[%emt 0:00:03]} 91. Qh8 {[%emt 0:00:42]} Kc7 {[%emt 0:00:11]} 92. h4 {[%emt 0:00:19]} Qd6+ {[%emt 0:00:24]} 93. Kh1 {[%emt 0:00:39]} d4 {[%emt 0:00:14]} 94. h5 {[%emt 0:00:48]} d3 {[%emt 0:00:14]} 95. Qg7+ {[%emt 0:00:57]} Kb6 {[%emt 0:00:16]} 96. Qc3 {[%emt 0:01:09]} d2 {[%emt 0:00:43]} 97. Qe3+ {[%emt 0:00:06]} c5 {[%emt 0:01:07]} 0-1

[Event "Teplice Open 2019"]
[Site "Teplice"]
[Date "2019.06.16"]
[Round "2.31"]
[White "Kucera, Petr"]
[Black "Song, Raymond"]
[Result "0-1"]
[ECO "D30"]
[WhiteElo "2175"]
[BlackElo "2450"]
[Annotator "RC"]
[PlyCount "80"]
[EventDate "2019.06.15"]
[EventType "swiss"]
[EventCountry "CZE"]
[SourceTitle "playchess.com"]
[Source "ChessBase"]
[SourceQuality "1"]
[TimeControl "40/5400+30:1800+30"]

1. d4 {[%emt 0:00:00]} Nf6 {[%emt 0:00:00]} 2. Nf3 {[%emt 0:00:00]} d5 {[%emt 0:00:00]} 3. e3 {[%emt 0:00:55]} c5 {[%emt 0:00:45]} 4. dxc5 {[%emt 0:03:35]} e6 {[%emt 0:00:19]} 5. c4 {[%emt 0:01:26]} Bxc5 {[%emt 0:00:22]} 6. a3 {[%emt 0:03:52]} a6 {[%emt 0:07:43]} 7. b4 {[%emt 0:02:09]} Ba7 {[%emt 0:00:08]} 8. Bb2 {[%emt 0:01:26]} O-O {[%emt 0:00:58]} 9. Nbd2 {[%emt 0:06:32]} Nc6 {[%emt 0:01:08]} 10. Be2 {[%emt 0:05:28]} Qe7 {[%emt 0:06:24]} 11. Qb3 {[%emt 0:13:43]} Rd8 {[%emt 0:03:13]} 12. Ne5 {[%emt 0:13:03]} Bb8 {[%emt 0:18:17]} 13. Ndf3 {[%emt 0:09:23]} Ne4 {[%emt 0:01:38]} 14. Nxc6 {[%emt 0:07:10]} bxc6 {[%emt 0:00:15]} 15. O-O {[%emt 0:01:31]} e5 {[%emt 0:01:05]} 16. Rfd1 {[%emt 0:06:08]} Nf6 {[%emt 0:01:51]} 17. cxd5 {[%emt 0:05:11]} cxd5 {[%emt 0:00:20]} 18. Rac1 {[%emt 0:01:59]} h6 {[%emt 0:05:37]} 19. Qa2 {[%emt 0:06:37]} Bb7 {[%emt 0:02:57]} 20. Qa1 {[%emt 0:02:26]} Re8 {[%emt 0:00:20]} 21. b5 {[%emt 0:01:49]} Bd6 {[%emt 0:01:30]} 22. a4 {[%emt 0:01:13]} Qe6 {[%emt 0:04:26]} 23. Bf1 {[%emt 0:01:45]} a5 {[%emt 0:01:43]} 24. Ba3 {[%emt 0:01:36]} Bb8 {[%emt 0:03:04]} 25. Bb2 {[%emt 0:00:13]} d4 {[%emt 0:02:43]} 26. exd4 {[%emt 0:01:09]} Bxf3 {[%emt 0:00:04]} 27. gxf3 {[%emt 0:00:13]} e4 {[%emt 0:00:04]} 28. Rc6 {[%emt 0:01:43]} Qf5 {[%emt 0:00:14]} 29. Qc1 {[%emt 0:01:28]} Qg6+ {[%emt 0:03:30]} 30. Kh1 {[%emt 0:00:16]} Qh5 {[%emt 0:00:04]} 31. h3 {[%emt 0:00:50]} Qxf3+ {[%emt 0:00:11]} 32. Bg2 {[%emt 0:00:12]} Qxf2 {[%emt 0:00:04]} 33. d5 {[%emt 0:00:45]} Nxd5 {[%emt 0:00:34]} 34. Rxd5 {[%emt 0:00:37]} Qg3 {[%emt 0:00:06]} 35. Kg1 {[%emt 0:00:23]} e3 {[%emt 0:00:24]} 36. Bc3 {[%emt 0:00:36]} Qh2+ {[%emt 0:00:37]} 37. Kf1 {[%emt 0:00:16]} e2+ {[%emt 0:00:02]} 38. Kf2 {[%emt 0:00:23]} Qg3+ {[%emt 0:00:06]} 39. Kg1 {[%emt 0:00:14]} e1=Q+ {[%emt 0:00:08]} 40. Bxe1 {[%emt 0:00:43]} Rxe1+ {[%emt 0:00:07]} 0-1

[Event "Teplice Open 2019"]
[Site "Teplice"]
[Date "2019.06.16"]
[Round "2.32"]
[White "Ankit, R. Rajpara"]
[Black "Balinski, Damian"]
[Result "1-0"]
[ECO "A88"]
[WhiteElo "2447"]
[BlackElo "2170"]
[Annotator "NA"]
[PlyCount "61"]
[EventDate "2019.06.15"]
[EventType "swiss"]
[EventCountry "CZE"]
[SourceTitle "playchess.com"]
[Source "ChessBase"]
[SourceQuality "1"]
[TimeControl "40/5400+30:1800+30"]

1. d4 {[%emt 0:00:03]} f5 {[%emt 0:00:00]} 2. g3 {[%emt 0:00:27]} Nf6 {[%emt 0:00:00]} 3. Bg2 {[%emt 0:00:17]} g6 {[%emt 0:00:00]} 4. c4 {[%emt 0:00:29]} Bg7 {[%emt 0:00:14]} 5. Nf3 {[%emt 0:00:15]} O-O {[%emt 0:00:12]} 6. O-O {[%emt 0:00:32]} d6 {[%emt 0:00:03]} 7. Nc3 {[%emt 0:00:52]} c6 {[%emt 0:00:09]} 8. b3 {[%emt 0:00:50]} Na6 {[%emt 0:02:17]} 9. Bb2 {[%emt 0:01:15]} Qe8 {[%emt 0:01:40]} 10. d5 {[%emt 0:04:27]} Bd7 {[%emt 0:00:41]} 11. Re1 {[%emt 0:10:15]} h6 {[%emt 0:12:36]} 12. Nd4 {[%emt 0:14:52]} Nc7 {[%emt 0:05:21]} 13. Qd2 {[%emt 0:09:56]} c5 {[%emt 0:11:17]} 14. Ne6 {[%emt 0:04:58]} Nxe6 {[%emt 0:15:49]} 15. dxe6 {[%emt 0:00:08]} Bxe6 {[%emt 0:00:36]} 16. Bxb7 {[%emt 0:00:11]} Rb8 {[%emt 0:01:05]} 17. Bg2 {[%emt 0:00:58]} Ng4 {[%emt 0:12:58]} 18. h3 {[%emt 0:15:34]} Ne5 {[%emt 0:00:31]} 19. f4 {[%emt 0:00:33]} Nf7 {[%emt 0:02:39]} 20. e4 {[%emt 0:01:46]} Bd4+ {[%emt 0:03:19]} 21. Kh2 {[%emt 0:00:21]} Nd8 {[%emt 0:11:30]} 22. exf5 {[%emt 0:18:16]} Bxf5 {[%emt 0:00:02]} 23. Nd5 {[%emt 0:00:22]} e5 {[%emt 0:09:04]} 24. fxe5 {[%emt 0:02:54]} dxe5 {[%emt 0:00:02]} 25. Bxd4 {[%emt 0:00:38]} cxd4 {[%emt 0:00:06]} 26. g4 {[%emt 0:01:00]} Bd7 {[%emt 0:06:34]} 27. Qxh6 {[%emt 0:00:24]} Rb6 {[%emt 0:03:30]} 28. Nxb6 {[%emt 0:00:41]} axb6 {[%emt 0:00:01]} 29. Rf1 {[%emt 0:03:56]} Ne6 {[%emt 0:01:22]} 30. Bd5 {[%emt 0:01:12]} Rxf1 {[%emt 0:00:23]} 31. Rxf1 {[%emt 0:00:07]} 1-0

[Event "Teplice Open 2019"]
[Site "Teplice"]
[Date "2019.06.16"]
[Round "2.33"]
[White "Vales, Vaclav"]
[Black "Erenberg, Ariel"]
[Result "0-1"]
[ECO "E12"]
[WhiteElo "2171"]
[BlackElo "2434"]
[Annotator "NA RC"]
[PlyCount "80"]
[EventDate "2019.06.15"]
[EventType "swiss"]
[EventCountry "CZE"]
[SourceTitle "playchess.com"]
[Source "ChessBase"]
[SourceQuality "1"]
[TimeControl "40/5400+30:1800+30"]

1. d4 {[%emt 0:00:00]} Nf6 {[%emt 0:00:00]} 2. Nf3 {[%emt 0:00:00]} e6 {[%emt 0:00:25]} 3. c4 {[%emt 0:00:00]} b6 {[%emt 0:00:45]} 4. a3 {[%emt 0:01:07]} Bb7 {[%emt 0:00:26]} 5. Nc3 {[%emt 0:00:06]} d5 {[%emt 0:00:17]} 6. cxd5 {[%emt 0:00:06]} Nxd5 {[%emt 0:00:09]} 7. Qc2 {[%emt 0:01:52]} Nxc3 {[%emt 0:01:28]} 8. bxc3 {[%emt 0:01:12]} Nd7 {[%emt 0:00:42]} 9. e4 {[%emt 0:03:19]} c5 {[%emt 0:00:51]} 10. Bd3 {[%emt 0:03:36]} Qc7 {[%emt 0:00:41]} 11. O-O {[%emt 0:01:44]} cxd4 {[%emt 0:07:03]} 12. cxd4 {[%emt 0:01:45]} Qxc2 {[%emt 0:00:30]} 13. Bxc2 {[%emt 0:00:09]} Be7 {[%emt 0:03:46]} 14. Bb2 {[%emt 0:09:45]} O-O {[%emt 0:00:43]} 15. Rfe1 {[%emt 0:06:09]} Rac8 {[%emt 0:11:32]} 16. Bb3 {[%emt 0:07:04]} Rfd8 {[%emt 0:19:52]} 17. g3 {[%emt 0:13:23]} a5 {[%emt 0:04:25]} 18. Rad1 {[%emt 0:13:38]} Bf6 {[%emt 0:07:16]} 19. Re2 {[%emt 0:09:24]} b5 {[%emt 0:05:13]} 20. Ne1 {[%emt 0:04:48]} Nb6 {[%emt 0:04:46]} 21. f3 {[%emt 0:05:53]} Kf8 {[%emt 0:03:30]} 22. Rc2 {[%emt 0:02:30]} Rxc2 {[%emt 0:06:08]} 23. Nxc2 {[%emt 0:00:32]} Rc8 {[%emt 0:02:10]} 24. Ne3 {[%emt 0:01:17]} Be7 {[%emt 0:00:48]} 25. Kf2 {[%emt 0:02:58]} b4 {[%emt 0:02:49]} 26. axb4 {[%emt 0:01:27]} Bxb4 {[%emt 0:00:29]} 27. Ra1 {[%emt 0:02:56]} Ke8 {[%emt 0:05:27]} 28. Nd1 {[%emt 0:03:58]} Kd8 {[%emt 0:04:05]} 29. Ne3 {[%emt 0:02:46]} Ke8 {[%emt 0:03:27]} 30. Nd1 {[%emt 0:00:59]} Ba6 {[%emt 0:00:44]} 31. d5 {[%emt 0:00:28]} exd5 {[%emt 0:00:30]} 32. Bxg7 {[%emt 0:00:28]} dxe4 {[%emt 0:00:55]} 33. fxe4 {[%emt 0:00:13]} Bb5 {[%emt 0:01:43]} 34. Bd4 {[%emt 0:00:42]} a4 {[%emt 0:00:21]} 35. Bxb6 {[%emt 0:00:44]} axb3 {[%emt 0:00:05]} 36. Ne3 {[%emt 0:00:17]} b2 {[%emt 0:02:35]} 37. Rb1 {[%emt 0:00:05]} Bc3 {[%emt 0:00:39]} 38. Nd1 {[%emt 0:00:23]} Bd3 {[%emt 0:00:26]} 39. Nxc3 {[%emt 0:00:02]} Bxb1 {[%emt 0:00:06]} 40. Nxb1 {[%emt 0:00:06]} Rc1 {[%emt 0:00:09] Ke1} 0-1

[Event "Teplice Open 2019"]
[Site "Teplice"]
[Date "2019.06.16"]
[Round "2.34"]
[White "Cawdery, Daniel"]
[Black "Subramanian, Aditya"]
[Result "1-0"]
[ECO "C76"]
[WhiteElo "2428"]
[BlackElo "2167"]
[Annotator "NA"]
[PlyCount "43"]
[EventDate "2019.06.15"]
[EventType "swiss"]
[EventCountry "CZE"]
[SourceTitle "playchess.com"]
[Source "ChessBase"]
[SourceQuality "1"]
[TimeControl "40/5400+30:1800+30"]

1. e4 {[%emt 0:00:00]} e5 {[%emt 0:00:00]} 2. Nf3 {[%emt 0:00:00]} Nc6 {[%emt 0:00:00]} 3. Bb5 {[%emt 0:00:19]} g6 {[%emt 0:00:00]} 4. O-O {[%emt 0:06:11]} Bg7 {[%emt 0:00:00]} 5. c3 {[%emt 0:00:39]} a6 {[%emt 0:00:11]} 6. Ba4 {[%emt 0:00:48]} d6 {[%emt 0:00:09]} 7. d4 {[%emt 0:00:32]} Bd7 {[%emt 0:00:10]} 8. dxe5 {[%emt 0:02:59]} Nxe5 {[%emt 0:01:32]} 9. Bb3 {[%emt 0:04:33]} Nf6 {[%emt 0:08:51]} 10. Ng5 {[%emt 0:08:36]} b5 {[%emt 0:26:59]} 11. f4 {[%emt 0:02:54]} Nc4 {[%emt 0:00:51]} 12. e5 {[%emt 0:03:31]} Nh5 {[%emt 0:04:58]} 13. g4 {[%emt 0:06:20]} h6 {[%emt 0:08:21]} 14. Nxf7 {[%emt 0:00:44]} Kxf7 {[%emt 0:01:56]} 15. gxh5 {[%emt 0:00:12]} Rf8 {[%emt 0:06:50]} 16. Qd5+ {[%emt 0:10:06]} Be6 {[%emt 0:00:52]} 17. hxg6+ {[%emt 0:00:07]} Ke7 {[%emt 0:00:07]} 18. exd6+ {[%emt 0:01:36]} Kf6 {[%emt 0:04:11]} 19. Qh5 {[%emt 0:08:20]} Bf5 {[%emt 0:04:49]} 20. Bxc4 {[%emt 0:01:08]} bxc4 {[%emt 0:00:14]} 21. Be3 {[%emt 0:00:16]} Bxg6 {[%emt 0:02:06]} 22. Bd4+ {[%emt 0:00:12]} 1-0

[Event "Teplice Open 2019"]
[Site "Teplice"]
[Date "2019.06.16"]
[Round "2.36"]
[White "Mazur, Stefan"]
[Black "Kozak, Milos"]
[Result "1-0"]
[ECO "C92"]
[WhiteElo "2426"]
[BlackElo "2165"]
[Annotator "NA"]
[PlyCount "78"]
[EventDate "2019.06.15"]
[EventType "swiss"]
[EventCountry "CZE"]
[SourceTitle "playchess.com"]
[Source "ChessBase"]
[SourceQuality "1"]
[TimeControl "40/5400+30:1800+30"]

1. e4 {[%emt 0:00:00]} e5 {[%emt 0:00:00]} 2. Nf3 {[%emt 0:00:00]} Nc6 {[%emt 0:00:06]} 3. Bb5 {[%emt 0:00:08]} a6 {[%emt 0:00:29]} 4. Ba4 {[%emt 0:00:06]} Nf6 {[%emt 0:00:19]} 5. O-O {[%emt 0:00:42]} Be7 {[%emt 0:00:31]} 6. Re1 {[%emt 0:00:10]} b5 {[%emt 0:00:05]} 7. Bb3 {[%emt 0:00:04]} d6 {[%emt 0:00:06]} 8. c3 {[%emt 0:00:09]} O-O {[%emt 0:00:12]} 9. h3 {[%emt 0:00:10]} Bb7 {[%emt 0:00:25]} 10. d4 {[%emt 0:00:14]} Re8 {[%emt 0:00:56]} 11. Nbd2 {[%emt 0:00:59]} exd4 {[%emt 0:01:18]} 12. cxd4 {[%emt 0:00:08]} Nd7 {[%emt 0:00:45]} 13. Nf1 {[%emt 0:00:40]} Na5 {[%emt 0:00:07]} 14. Bc2 {[%emt 0:00:11]} Bf6 {[%emt 0:00:12]} 15. Rb1 {[%emt 0:02:48]} c5 {[%emt 0:05:39]} 16. d5 {[%emt 0:00:28]} Nc4 {[%emt 0:01:40]} 17. b3 {[%emt 0:00:35]} Nce5 {[%emt 0:00:06]} 18. N3h2 {[%emt 0:04:47]} c4 {[%emt 0:11:22]} 19. f4 {[%emt 0:04:51]} Nd3 {[%emt 0:05:05]} 20. Bxd3 {[%emt 0:21:29]} cxd3 {[%emt 0:00:02]} 21. Nf3 {[%emt 0:01:30]} Bc3 {[%emt 0:12:57]} 22. Bd2 {[%emt 0:02:01]} Rc8 {[%emt 0:05:33]} 23. Ng3 {[%emt 0:08:20]} b4 {[%emt 0:14:17]} 24. Rc1 {[%emt 0:04:04]} Bxd2 {[%emt 0:01:54]} 25. Qxd2 {[%emt 0:00:39]} Qb6+ {[%emt 0:02:45]} 26. Kh2 {[%emt 0:01:06]} Rxc1 {[%emt 0:01:40]} 27. Rxc1 {[%emt 0:00:18]} Nc5 {[%emt 0:00:23]} 28. Re1 {[%emt 0:00:34]} a5 {[%emt 0:02:12]} 29. Nd4 {[%emt 0:15:05]} Qd8 {[%emt 0:06:03]} 30. Ndf5 {[%emt 0:05:18]} g6 {[%emt 0:10:18]} 31. Nh6+ {[%emt 0:03:40]} Kg7 {[%emt 0:01:21]} 32. f5 {[%emt 0:02:59]} Rf8 {[%emt 0:13:57]} 33. Ng4 {[%emt 0:03:26]} Qh4 {[%emt 0:00:42]} 34. Qf4 {[%emt 0:01:35]} d2 {[%emt 0:02:27]} 35. Qxd2 {[%emt 0:01:14]} Re8 {[%emt 0:00:34]} 36. Qd4+ {[%emt 0:06:42]} f6 {[%emt 0:00:11]} 37. fxg6 {[%emt 0:00:06]} hxg6 {[%emt 0:00:22]} 38. Rf1 {[%emt 0:00:11]} Ba6 {[%emt 0:01:23]} 39. Rxf6 {[%emt 0:01:44]} Qxg3+ {[%emt 0:00:00]} 1-0